bitfinex-derivatives/quotes_SOLF0:USTF0_20241229
["timestamp","ask_amount","ask_price","bid_price","bid_amount"]
[1735445597441,9.70689716,194.56,194.49,8.15579716]
[1735445597634,2.5746,194.54,194.49,8.15579716]
[1735445597934,9.70689716,194.56,194.49,8.15579716]
[1735445599540,2.5746,194.54,194.51,8.15579716]
[1735445599937,2.5746,194.55,194.51,8.15579716]
[1735445602338,2.5746,194.55,194.53,8.15579716]
[1735445602642,4.1255,194.56,194.53,8.15579716]
[1735445603139,1.5511,194.56,194.53,8.15579716]
[1735445604347,1.5511,194.56,194.53,11.01579716]
[1735445604645,1.5511,194.56,194.53,13.59049716]
[1735445605946,4.1255,194.56,194.53,11.01579716]
[1735445608946,1.5511,194.56,194.53,13.59049716]
[1735445609244,1.5196,194.57,194.55,8.15579716]
[1735445609449,1.5088,194.61,194.55,8.15579716]
[1735445609649,2.5738,194.6,194.57,8.15579716]
[1735445610548,4.0825,194.61,194.57,10.72999716]
[1735445611750,2.5738,194.6,194.57,10.72999716]
[1735445615852,2.5738,194.6,194.57,8.15579716]
[1735445616052,1.5088,194.61,194.57,8.15579716]
[1735445616253,2.574,194.59,194.55,8.15579716]
[1735445617252,2.574,194.59,194.55,10.73019716]
[1735445619857,2.574,194.59,194.55,8.15579716]
[1735445621659,1.5088,194.61,194.55,8.15579716]
[1735445621859,2.5741,194.58,194.55,8.15579716]
[1735445622256,2.5741,194.58,194.57,8.15579716]
[1735445626561,2.5741,194.58,194.54,5.4346]
[1735445626759,2.5741,194.58,194.56,8.15579716]
[1735445630964,1.5088,194.61,194.56,8.15579716]
[1735445631165,1.5969,194.63,194.59,8.15579716]
[1735445631667,2.5737,194.61,194.59,8.15579716]
[1735445640468,2.5738,194.6,194.59,8.15579716]
[1735445650275,1.5969,194.63,194.59,8.15579716]
[1735445650479,2.5736,194.62,194.59,8.15579716]
[1735445652676,2.5738,194.61,194.59,8.15579716]
[1735445653875,2.5736,194.62,194.59,8.15579716]
[1735445654583,1.5969,194.63,194.61,8.15579716]
[1735445657472,4.1704,194.63,194.61,8.15579716]
[1735445660687,1.5496,194.64,194.62,2.5734]
[1735445660888,1.6202,194.67,194.63,8.15579716]
[1735445661787,4.1932,194.67,194.63,10.72919716]
[1735445662488,2.573,194.67,194.65,8.15579716]
[1735445663283,4.6339447,194.69,194.65,8.15579716]
[1735445663488,2.5728,194.68,194.65,8.15579716]
[1735445663884,2.573,194.67,194.65,8.15579716]
[1735445664492,2.573,194.66,194.65,8.15579716]
[1735445671397,2.573,194.66,194.63,10.72919716]
[1735445673404,4.6339447,194.69,194.63,8.15579716]
[1735445673703,8.15579716,194.68,194.61,8.15579716]
[1735445673898,9.67989716,194.68,194.61,8.15579716]
[1735445674704,2.5733,194.65,194.61,10.72949716]
[1735445675205,2.5733,194.64,194.61,10.72949716]
[1735445676005,2.5733,194.64,194.61,8.15579716]
[1735445677508,2.5732,194.65,194.61,8.15579716]
[1735445681711,2.5735,194.63,194.59,5.4139]
[1735445682009,8.15579716,194.66,194.59,10.99579716]
[1735445682614,2.5735,194.63,194.59,10.99579716]
[1735445682812,8.15579716,194.66,194.59,8.15579716]
[1735445683112,8.15579716,194.61,194.53,2.5746]
[1735445683316,3.0825,194.6,194.54,8.15579716]
[1735445684022,2.5742,194.58,194.54,8.15579716]
[1735445685316,2.5742,194.57,194.54,8.15579716]
[1735445685716,3.0825,194.6,194.56,10.73009716]
[1735445686018,3.0825,194.6,194.58,8.15579716]
[1735445687918,3.0825,194.6,194.56,2.5743]
[1735445687919,3.0825,194.6,194.56,8.15579716]
[1735445689524,2.574,194.59,194.56,8.15579716]
[1735445692427,2.5741,194.58,194.56,8.15579716]
[1735445693821,2.5742,194.57,194.53,2.5747]
[1735445694020,11.23829716,194.6,194.53,11.01579716]
[1735445694428,2.5743,194.57,194.53,11.01579716]
[1735445696132,2.5743,194.57,194.53,8.15579716]
[1735445698430,2.5743,194.57,194.53,10.73049716]
[1735445698634,11.23829716,194.6,194.53,8.15579716]
[1735445698837,2.5744,194.56,194.53,8.15579716]
[1735445703538,11.23829716,194.6,194.55,8.15579716]
[1735445703539,3.0825,194.6,194.55,8.15579716]
[1735445703743,3.0825,194.6,194.58,8.15579716]
[1735445704042,3.0825,194.6,194.57,8.15579716]
[1735445704744,5.6563,194.6,194.57,8.15579716]
[1735445709447,2.5743,194.57,194.52,2.84]
[1735445709653,2.5743,194.57,194.53,8.15579716]
[1735445711653,2.5743,194.57,194.55,8.15579716]
[1735445711855,3.0825,194.6,194.55,8.15579716]
[1735445712057,2.5741,194.58,194.55,8.15579716]
[1735445712251,3.0825,194.6,194.55,8.15579716]
[1735445712457,5.6564,194.6,194.57,8.15579716]
[1735445717664,3.0825,194.6,194.57,10.72999716]
[1735445718959,2.5737,194.61,194.57,10.72999716]
[1735445720065,2.5737,194.61,194.58,2.5741]
[1735445722666,2.5735,194.63,194.59,10.72969716]
[1735445722872,3.0763,194.66,194.61,8.15579716]
[1735445723172,2.5731,194.66,194.61,8.15579716]
[1735445723362,0.5766,194.67,194.61,8.15579716]
[1735445723870,2.5732,194.65,194.61,10.72949716]
[1735445726274,2.5735,194.63,194.61,8.15579716]
[1735445726475,8.15579716,194.66,194.59,8.15579716]
[1735445726873,2.5737,194.61,194.59,8.15579716]
[1735445729678,1.5699,194.65,194.59,10.72969716]
[1735445730374,1.5699,194.65,194.61,10.72949716]
[1735445731574,4.1431,194.65,194.61,10.72949716]
[1735445731972,1.5699,194.65,194.61,8.15579716]
[1735445732180,1.5699,194.65,194.59,8.15579716]
[1735445732677,9.72569716,194.65,194.59,8.15579716]
[1735445732873,2.5738,194.61,194.59,8.15579716]
[1735445733074,9.72569716,194.65,194.57,5.4142]
[1735445733277,9.72569716,194.65,194.57,2.84]
[1735445733474,2.5741,194.58,194.55,8.15579716]
[1735445734580,2.5741,194.58,194.55,10.73029716]
[1735445734888,2.5741,194.58,194.55,8.15579716]
[1735445745885,1.4866,194.6,194.57,8.15579716]
[1735445745886,4.0605,194.6,194.57,8.15579716]
[1735445746092,8.15579716,194.64,194.59,8.15579716]
[1735445746291,1.5699,194.65,194.59,8.15579716]
[1735445746891,2.5735,194.63,194.59,10.72959716]
[1735445747595,1.5699,194.65,194.6,2.5738]
[1735445747596,2.5733,194.64,194.6,2.5738]
[1735445748293,2.5733,194.64,194.61,8.15579716]
[1735445751795,1.5699,194.65,194.59,10.72979716]
[1735445753391,2.5735,194.63,194.59,10.72979716]
[1735445764803,2.5733,194.64,194.6,2.5738]
[1735445766212,1.5699,194.65,194.61,10.72949716]
[1735445768316,4.1431,194.65,194.61,10.72949716]
[1735445768714,1.5699,194.65,194.61,8.15579716]
[1735445768915,1.5699,194.65,194.57,2.84]
[1735445769116,1.5699,194.65,194.58,8.15579716]
[1735445769918,2.5735,194.63,194.59,2.5738]
[1735445773622,2.5733,194.64,194.6,10.72949716]
[1735445773819,1.5699,194.65,194.6,8.15579716]
[1735445775117,1.5699,194.65,194.62,2.5735]
[1735445775118,4.1431,194.65,194.62,2.5735]
[1735445780119,1.5699,194.65,194.6,8.15579716]
[1735445780325,1.5699,194.65,194.6,2.5737]
[1735445780525,1.5699,194.65,194.58,8.15579716]
[1735445781125,2.5736,194.63,194.59,2.5739]
[1735445782630,2.5734,194.63,194.58,10.72979716]
[1735445783325,2.5734,194.63,194.59,2.574]
[1735445783531,4.1431,194.65,194.6,8.15579716]
[1735445784529,4.1431,194.65,194.61,2.5737]
[1735445786634,2.5732,194.65,194.61,2.5737]
[1735445789134,2.573,194.67,194.62,10.72919716]
[1735445790236,2.573,194.67,194.63,2.5734]
[1735445791732,2.573,194.67,194.62,13.56929716]
[1735445791931,2.573,194.66,194.62,13.56929716]
[1735445792637,2.5733,194.64,194.62,10.99579716]
[1735445795739,2.5732,194.65,194.62,10.99579716]
[1735445796434,2.5729,194.67,194.62,10.99579716]
[1735445797332,2.5728,194.68,194.64,8.15579716]
[1735445798538,2.5728,194.68,194.64,10.72909716]
[1735445799834,2.5728,194.68,194.64,2.5733]
[1735445800144,2.5729,194.67,194.64,2.5733]
[1735445801734,2.5732,194.65,194.62,8.15579716]
[1735445803541,2.5732,194.65,194.62,10.72929716]
[1735445804053,8.15579716,194.67,194.6,8.15579716]
[1735445804941,2.5735,194.63,194.6,8.15579716]
[1735445805448,8.15579716,194.65,194.58,2.84]
[1735445805642,8.15579716,194.65,194.58,10.99579716]
[1735445806449,8.15579716,194.65,194.58,13.56989716]
[1735445807447,2.5736,194.62,194.58,13.56989716]
[1735445807742,2.5736,194.62,194.58,10.72989716]
[1735445807948,8.15579716,194.63,194.52,7.10726916]
[1735445808244,8.15579716,194.61,194.55,8.15579716]
[1735445809546,2.5741,194.58,194.55,8.15579716]
[1735445812759,2.5738,194.6,194.57,8.15579716]
[1735445813155,1.6081,194.62,194.57,8.15579716]
[1735445813354,2.5737,194.61,194.57,8.15579716]
[1735445814281,2.5737,194.61,194.57,10.72999716]
[1735445815659,3.1365,194.64,194.59,8.15579716]
[1735445816353,5.7099,194.64,194.6,2.5737]
[1735445818163,3.1365,194.64,194.61,10.72949716]
[1735445818460,1.615,194.64,194.61,8.15579716]
[1735445819159,31.29725572,194.71,194.63,8.15579716]
[1735445819358,2.5724,194.71,194.67,8.15579716]
[1735445822357,2.5721,194.73,194.64,2.84]
[1735445822562,2.5721,194.73,194.69,8.15579716]
[1735445823463,2.5721,194.73,194.69,10.72839716]
[1735445824357,3.0616,194.74,194.69,10.72839716]
[1735445825462,2.5721,194.73,194.69,10.72839716]
[1735445830457,2.5723,194.72,194.69,8.15579716]
[1735445831467,8.15579716,194.71,194.64,2.5732]
[1735445831666,8.15579716,194.71,194.64,10.72899716]
[1735445831859,8.15579716,194.71,194.64,8.15579716]
[1735445832064,2.5729,194.67,194.64,8.15579716]
[1735445836971,2.5728,194.68,194.64,8.15579716]
[1735445837166,8.15579716,194.71,194.64,10.72899716]
[1735445837570,8.15579716,194.73,194.66,10.72879716]
[1735445838071,2.5727,194.69,194.64,2.5733]
[1735445838369,8.15579716,194.71,194.65,8.15579716]
[1735445839462,2.5727,194.69,194.65,8.15579716]
[1735445839766,8.15579716,194.71,194.65,8.15579716]
[1735445842371,3.0616,194.74,194.65,8.15579716]
[1735445842672,8.15579716,194.71,194.65,8.15579716]
[1735445843267,2.5727,194.69,194.65,8.15579716]
[1735445846572,8.15579716,194.71,194.65,8.15579716]
[1735445847169,8.15579716,194.71,194.63,13.56919716]
[1735445847374,2.573,194.67,194.63,13.56919716]
[1735445848269,2.5731,194.66,194.63,10.99579716]
[1735445848473,8.15579716,194.67,194.61,5.4136]
[1735445848669,8.15579716,194.67,194.61,13.56939716]
[1735445849373,2.5732,194.65,194.61,13.56939716]
[1735445849673,8.15579716,194.67,194.62,2.5735]
[1735445849875,8.15579716,194.69,194.62,2.5735]
[1735445850574,2.573,194.66,194.63,8.15579716]
[1735445850977,2.5729,194.68,194.64,2.5733]
[1735445851177,8.15579716,194.71,194.65,8.15579716]
[1735445853278,2.5725,194.7,194.65,8.15579716]
[1735445853473,8.15579716,194.72,194.65,8.15579716]
[1735445853678,2.5725,194.71,194.67,2.5729]
[1735445854382,2.5723,194.72,194.69,2.5726]
[1735445855476,3.0616,194.74,194.67,10.99579716]
[1735445855680,3.0616,194.74,194.69,8.15579716]
[1735445855880,3.0616,194.74,194.68,8.15579716]
[1735445856277,8.15579716,194.73,194.61,28.42907666]
[1735445856477,8.15579716,194.71,194.64,8.15579716]
[1735445857475,2.5726,194.69,194.65,2.5731]
[1735445858082,2.5726,194.69,194.64,10.72909716]
[1735445858482,2.5726,194.69,194.64,8.15579716]
[1735445858681,2.5726,194.69,194.65,2.5731]
[1735445860887,2.5726,194.69,194.64,10.72899716]
[1735445861788,2.5726,194.69,194.64,2.5732]
[1735445862089,2.5728,194.68,194.64,2.5732]
[1735445862583,8.15579716,194.69,194.63,8.15579716]
[1735445862784,2.5729,194.67,194.62,2.5734]
[1735445862981,8.15579716,194.69,194.62,2.5734]
[1735445863181,2.573,194.66,194.62,2.5734]
[1735445866691,2.573,194.66,194.61,2.5737]
[1735445867097,2.5734,194.64,194.59,2.5739]
[1735445867295,2.5734,194.64,194.59,5.4139]
[1735445867889,2.5735,194.63,194.58,10.72989716]
[1735445868294,8.15579716,194.65,194.58,8.15579716]
[1735445868489,8.15579716,194.65,194.6,8.15579716]
[1735445869089,2.5732,194.66,194.6,10.72949716]
[1735445869298,9.68709716,194.67,194.6,2.5737]
[1735445869896,2.5733,194.65,194.6,2.5737]
[1735445873598,8.15579716,194.66,194.59,8.15579716]
[1735445873898,2.5735,194.63,194.59,10.72969716]
[1735445876299,2.5732,194.65,194.61,2.5737]
[1735445876698,8.15579716,194.66,194.59,8.15579716]
[1735445877397,2.5733,194.64,194.6,2.5737]
[1735445879101,2.5733,194.64,194.61,2.5737]
[1735445880603,8.15579716,194.66,194.59,8.15579716]
[1735445880902,2.5735,194.63,194.59,2.5739]
[1735445882903,2.5735,194.63,194.59,10.72969716]
[1735445883901,8.15579716,194.65,194.54,1.78397945]
[1735445884104,2.5735,194.63,194.58,8.15579716]
[1735445884902,2.5735,194.63,194.59,2.5739]
[1735445896010,8.15579716,194.61,194.54,2.5746]
[1735445896216,8.15579716,194.59,194.54,2.5746]
[1735445896517,8.15579716,194.61,194.54,2.5746]
[1735445897317,2.5741,194.59,194.54,2.5746]
[1735445898313,2.5741,194.59,194.54,10.73039716]
[1735445898919,2.5741,194.59,194.54,2.5746]
[1735445899120,2.5741,194.59,194.54,10.73039716]
[1735445901119,10.72949716,194.61,194.56,2.5742]
[1735445901317,3.2023,194.62,194.56,8.15579716]
[1735445902413,3.2023,194.62,194.59,2.5739]
[1735445903723,5.7759,194.62,194.58,2.5741]
[1735445904720,3.2023,194.62,194.58,2.5741]
[1735445907325,13.93169716,194.62,194.58,2.5741]
[1735445907723,11.35809716,194.62,194.56,8.15579716]
[1735445907924,8.15579716,194.6,194.53,2.86]
[1735445908424,2.574,194.59,194.54,2.5745]
[1735445908726,2.574,194.59,194.54,8.15579716]
[1735445909428,2.574,194.59,194.55,2.5745]
[1735445909931,2.574,194.59,194.54,8.15579716]
[1735445910227,2.574,194.59,194.54,10.73039716]
[1735445911028,2.574,194.59,194.54,2.5746]
[1735445916933,2.5741,194.58,194.54,2.5746]
[1735445917326,8.15579716,194.6,194.52,2.5748]
[1735445917528,2.5743,194.57,194.52,2.5748]
[1735445920527,2.5743,194.57,194.53,2.5747]
[1735445921733,1.5474,194.61,194.51,8.15579716]
[1735445921930,2.5739,194.6,194.55,2.5744]
[1735445927636,12.27689716,194.61,194.57,2.5742]
[1735445936836,2.5738,194.6,194.57,2.5742]
[1735445939536,10.72959716,194.6,194.57,2.5742]
[1735445940241,10.72959716,194.6,194.56,2.5743]
[1735445940438,8.15579716,194.6,194.54,2.86]
[1735445940639,2.574,194.59,194.52,2.86]
[1735445940844,8.15579716,194.58,194.54,2.5745]
[1735445941037,10.72989716,194.58,194.54,2.5745]
[1735445945149,2.5742,194.57,194.52,2.5748]
[1735445946053,8.15579716,194.54,194.49,9.68246916]
[1735445946654,10.73039716,194.54,194.5,2.5751]
[1735445947851,8.15579716,194.52,194.48,7.10726916]
[1735445948054,8.15579716,194.52,194.47,2.5754]
[1735445948055,10.73079716,194.52,194.47,2.5754]
[1735445948356,8.15579716,194.52,194.44,15.26306632]
[1735445948550,2.5752,194.5,194.46,2.5757]
[1735445949056,8.15579716,194.5,194.44,7.10726916]
[1735445949353,2.5754,194.49,194.44,2.5759]
[1735445949554,5.6099,194.49,194.44,2.5759]
[1735445951054,5.6099,194.49,194.44,8.15579716]
[1735445951055,3.0345,194.49,194.44,8.15579716]
[1735445951248,3.0345,194.49,194.46,8.15579716]
[1735445951448,8.15579716,194.54,194.48,8.15579716]
[1735445952460,8.15579716,194.54,194.5,2.5751]
[1735445953465,8.15579716,194.54,194.48,8.15579716]
[1735445953659,10.73049716,194.54,194.49,2.5752]
[1735445953859,1.5293,194.57,194.48,11.01579716]
[1735445954262,8.15579716,194.56,194.48,11.01579716]
[1735445955263,8.15579716,194.56,194.51,2.575]
[1735445955466,8.15579716,194.56,194.48,11.01579716]
[1735445955764,10.73049716,194.54,194.49,2.5753]
[1735445962170,10.73049716,194.54,194.5,2.5751]
[1735445962371,8.15579716,194.54,194.5,2.5751]
[1735445963972,8.15579716,194.54,194.48,11.01579716]
[1735445964172,8.15579716,194.54,194.48,5.4354]
[1735445964471,2.5749,194.53,194.48,5.4354]
[1735445964973,8.15579716,194.54,194.48,2.86]
[1735445965173,2.575,194.52,194.48,2.86]
[1735445965865,2.575,194.51,194.4,7.10726916]
[1735445966064,8.15579716,194.5,194.41,2.86]
[1735445966272,8.15579716,194.5,194.43,8.15579716]
[1735445967274,8.15579716,194.5,194.45,2.5758]
[1735445968877,8.15579716,194.52,194.45,8.15579716]
[1735445969074,8.15579716,194.52,194.48,2.5754]
[1735445970578,10.73069716,194.52,194.46,2.86]
[1735445970775,8.15579716,194.52,194.46,2.86]
[1735445972477,2.5752,194.5,194.46,2.86]
[1735445973176,2.5752,194.5,194.46,5.4356]
[1735445973877,11.26439716,194.53,194.46,2.86]
[1735445974074,11.26439716,194.53,194.47,8.15579716]
[1735445974075,3.1086,194.53,194.47,8.15579716]
[1735445975478,3.1086,194.53,194.49,2.5752]
[1735445977576,1.5293,194.57,194.49,8.15579716]
[1735445977878,8.15579716,194.56,194.49,8.15579716]
[1735445979083,8.15579716,194.56,194.51,2.575]
[1735445979386,8.15579716,194.56,194.51,5.455]
[1735445979579,8.15579716,194.56,194.52,2.5749]
[1735445980481,10.73019716,194.56,194.52,2.5749]
[1735445981385,8.15579716,194.56,194.51,2.88]
[1735445981981,2.5746,194.54,194.5,2.5751]
[1735445985179,10.73039716,194.54,194.5,2.5751]
[1735445985380,10.73039716,194.54,194.49,2.88]
[1735445985584,2.5748,194.53,194.49,5.4552]
[1735445985887,8.15579716,194.54,194.49,5.4552]
[1735445986390,10.73039716,194.54,194.49,5.4552]
[1735445989591,8.15579716,194.54,194.49,5.4552]
[1735445989788,2.5748,194.53,194.49,5.4552]
[1735445990291,2.5749,194.52,194.49,2.88]
[1735445993594,2.5749,194.52,194.47,5.4554]
[1735445994092,10.73069716,194.52,194.47,5.4554]
[1735445996096,2.5747,194.53,194.49,2.5753]
[1735445996389,8.15579716,194.54,194.48,8.15579716]
[1735445997185,10.73049716,194.54,194.49,2.5752]
[1735446000500,2.5749,194.52,194.48,10.73119716]
[1735446000698,8.15579716,194.54,194.47,2.88]
[1735446000898,8.15579716,194.52,194.47,2.88]
[1735446001098,2.575,194.51,194.47,2.88]
[1735446001400,8.15579716,194.52,194.47,2.88]
[1735446001696,10.73079716,194.52,194.47,5.4554]
[1735446002095,8.15579716,194.54,194.47,2.88]
[1735446002400,8.15579716,194.54,194.49,2.5752]
[1735446003194,10.73049716,194.54,194.49,2.5752]
[1735446003394,3.1063,194.56,194.5,8.15579716]
[1735446003801,5.6807,194.56,194.51,2.5749]
[1735446005302,5.6807,194.56,194.5,8.15579716]
[1735446005603,5.6807,194.56,194.52,2.5749]
[1735446010403,3.1063,194.56,194.52,2.5749]
[1735446010609,2.5745,194.55,194.52,2.5749]
[1735446018618,2.5745,194.55,194.5,8.15579716]
[1735446018919,2.5745,194.55,194.51,2.575]
[1735446019116,3.1063,194.56,194.5,8.15579716]
[1735446019714,5.6807,194.56,194.52,2.5748]
[1735446019918,5.6807,194.56,194.52,5.4348]
[1735446022119,5.6807,194.56,194.52,2.86]
[1735446022921,2.5745,194.55,194.52,2.86]
[1735446023123,8.15579716,194.55,194.49,2.5752]
[1735446023316,8.15579716,194.53,194.49,2.86]
[1735446023814,10.73069716,194.53,194.49,2.86]
[1735446028325,10.73069716,194.53,194.48,2.5753]
[1735446028528,10.73069716,194.53,194.49,2.86]
[1735446031025,2.5749,194.52,194.47,2.5755]
[1735446031230,8.15579716,194.51,194.47,2.84]
[1735446031730,10.73089716,194.51,194.47,2.84]
[1735446032130,8.15579716,194.51,194.47,2.84]
[1735446032625,2.5752,194.5,194.47,2.84]
[1735446032820,8.15579716,194.51,194.47,2.84]
[1735446034125,8.15579716,194.51,194.45,5.4158]
[1735446034525,2.5753,194.49,194.45,5.4158]
[1735446044132,2.5751,194.51,194.46,10.73149716]
[1735446044340,8.15579716,194.52,194.46,10.73149716]
[1735446045434,2.5752,194.5,194.46,10.73149716]
[1735446051439,3.1063,194.56,194.48,8.15579716]
[1735446051639,11.26209716,194.56,194.48,8.15579716]
[1735446051934,2.5745,194.55,194.51,2.5749]
[1735446052135,2.5745,194.55,194.48,8.15579716]
[1735446052636,2.5745,194.55,194.5,2.575]
[1735446054640,2.5745,194.55,194.51,2.575]
[1735446057539,2.5747,194.54,194.5,13.57089716]
[1735446057739,2.5747,194.54,194.5,5.4151]
[1735446058740,8.15579716,194.54,194.43,7.10726916]
[1735446058943,8.15579716,194.52,194.45,8.15579716]
[1735446059146,8.15579716,194.52,194.46,2.84]
[1735446059342,8.15579716,194.52,194.45,8.15579716]
[1735446059543,8.15579716,194.52,194.46,2.84]
[1735446059944,2.5752,194.5,194.45,13.57159716]
[1735446060641,10.73099716,194.5,194.45,5.4158]
[1735446060848,2.5753,194.49,194.45,5.4158]
[1735446065252,2.5753,194.49,194.45,2.5758]
[1735446070852,2.5753,194.49,194.44,5.4159]
[1735446071153,2.5753,194.49,194.44,13.57169716]
[1735446071446,2.5755,194.48,194.44,8.15579716]
[1735446072551,2.5755,194.48,194.43,5.416]
[1735446072849,8.15579716,194.5,194.4,42.3438712]
[1735446073050,2.5757,194.46,194.41,10.99579716]
[1735446073749,2.5758,194.45,194.41,13.57209716]
[1735446075153,2.5757,194.46,194.41,13.57209716]
[1735446076052,2.5757,194.46,194.41,10.99579716]
[1735446076255,2.5757,194.46,194.42,2.5762]
[1735446076846,2.5757,194.46,194.42,5.4162]
[1735446077552,2.5755,194.48,194.43,2.5759]
[1735446077853,3.1485,194.49,194.43,8.15579716]
[1735446078553,5.7239,194.49,194.44,2.5758]
[1735446081455,3.1485,194.49,194.46,2.5756]
[1735446081953,5.7238,194.49,194.45,2.5758]
[1735446083957,3.1485,194.49,194.47,2.5755]
[1735446087754,3.1485,194.49,194.46,10.99579716]
[1735446087955,3.1485,194.49,194.46,13.57139716]
[1735446088150,3.1485,194.49,194.46,10.99579716]
[1735446088453,1.6136,194.51,194.46,10.99579716]
[1735446089459,1.6136,194.51,194.48,2.5754]
[1735446090962,1.6136,194.51,194.49,2.5753]
[1735446093764,12.34449716,194.51,194.48,2.5753]
[1735446093964,9.76939716,194.51,194.46,2.84]
[1735446095473,2.5751,194.5,194.47,2.5755]
[1735446099774,2.5751,194.5,194.46,5.4156]
[1735446100976,2.5753,194.49,194.46,2.84]
[1735446101974,8.15579716,194.5,194.44,2.84]
[1735446102167,9.66279716,194.5,194.44,2.84]
[1735446102571,2.5756,194.47,194.44,2.84]
[1735446102972,2.5756,194.47,194.42,2.5761]
[1735446103171,2.5755,194.48,194.41,9.68356916]
[1735446103378,1.507,194.5,194.42,2.84]
[1735446103675,8.15579716,194.48,194.42,2.84]
[1735446104272,2.5757,194.46,194.42,5.4161]
[1735446104475,2.5757,194.46,194.42,2.84]
[1735446107976,8.15579716,194.48,194.43,8.15579716]
[1735446108179,2.5755,194.48,194.43,10.73179716]
[1735446109682,2.5756,194.47,194.43,10.73179716]
[1735446112684,2.5756,194.47,194.43,8.15579716]
[1735446112984,9.66279716,194.5,194.43,8.15579716]
[1735446114578,2.5758,194.46,194.42,5.4162]
[1735446122386,2.5758,194.46,194.42,2.5762]
[1735446124390,2.5758,194.46,194.42,10.73199716]
[1735446126589,2.5758,194.46,194.42,2.5762]
[1735446129387,2.5758,194.46,194.41,2.84]
[1735446129593,2.5758,194.46,194.41,13.57209716]
[1735446130691,2.576,194.44,194.41,2.84]
[1735446131691,2.576,194.44,194.4,8.15579716]
[1735446131892,2.5764,194.41,194.38,1.80955324]
[1735446133394,2.5764,194.41,194.36,10.73279716]
[1735446134498,2.5764,194.41,194.36,2.577]
[1735446134700,2.5764,194.41,194.36,10.73279716]
[1735446137299,1.6187,194.42,194.38,8.15579716]
[1735446137502,1.5645,194.43,194.4,8.15579716]
[1735446138503,1.5645,194.43,194.41,2.5763]
[1735446141506,1.5645,194.43,194.4,13.57219716]
[1735446162322,2.5758,194.45,194.4,13.57219716]
[1735446167633,2.5758,194.45,194.41,2.5763]
[1735446168437,1.5376,194.49,194.4,10.99579716]
[1735446168438,1.5376,194.49,194.42,8.15579716]
[1735446168738,1.5376,194.49,194.44,8.15579716]
[1735446168932,4.113,194.49,194.44,10.73159716]
[1735446169134,1.5376,194.49,194.44,10.73159716]
[1735446170428,2.5755,194.48,194.44,10.73159716]
[1735446171534,2.5755,194.48,194.44,2.5758]
[1735446174337,2.5755,194.48,194.43,2.576]
[1735446181942,10.73129716,194.48,194.43,2.576]
[1735446182945,2.5755,194.48,194.43,2.576]
[1735446183242,10.73129716,194.48,194.43,2.576]
[1735446191652,2.5756,194.47,194.43,2.576]
[1735446193449,8.15579716,194.48,194.41,2.84]
[1735446193748,2.5758,194.46,194.41,5.4163]
[1735446194951,2.5758,194.46,194.41,2.84]
[1735446195149,2.5758,194.46,194.42,2.5762]
[1735446199256,2.5756,194.47,194.42,10.73199716]
[1735446199549,2.5756,194.47,194.43,2.576]
[1735446201356,1.5376,194.49,194.44,2.5759]
[1735446202551,4.1129,194.49,194.44,2.5759]
[1735446204350,4.1129,194.49,194.42,8.15579716]
[1735446204556,4.1129,194.49,194.45,2.5758]
[1735446226769,4.1129,194.49,194.44,10.99579716]
[1735446226971,4.1129,194.49,194.44,13.57169716]
[1735446230875,1.5376,194.49,194.45,2.5758]
[1735446233677,4.1129,194.49,194.45,2.5758]
[1735446235283,1.5376,194.49,194.45,2.5758]
[1735446235784,1.5376,194.49,194.44,10.99579716]
[1735446235978,1.5376,194.49,194.46,2.5755]
[1735446238588,1.5376,194.49,194.44,10.99579716]
[1735446238788,1.5376,194.49,194.47,2.5755]
[1735446246591,4.2043,194.5,194.47,2.5755]
[1735446246788,1.5193,194.54,194.48,2.5754]
[1735446246993,1.5193,194.54,194.47,8.15579716]
[1735446247495,1.5193,194.54,194.49,2.5752]
[1735446247686,1.5193,194.54,194.47,8.15579716]
[1735446248424,2.5749,194.52,194.48,2.5754]
[1735446250629,2.5749,194.52,194.49,2.84]
[1735446253336,2.5749,194.52,194.49,10.99579716]
[1735446253535,1.5193,194.54,194.49,10.99579716]